fUSD/lending_fUSD_20240626
["ID","MTS","AMOUNT","RATE_DAILY","PERIOD"]
[330417684,1719361842551,-187.81581,0.00022974,7]
[330417685,1719361842560,-11136.599898,0.00022974,3]
[330417686,1719361842570,-173.76392903,0.00022974,2]
[330417687,1719361842583,-3695.0,0.00022979,2]
[330417688,1719361842593,-195.5711968,0.0002298,2]
[330417689,1719361842602,-89092.7991837,0.0002298,3]
[330417690,1719361842612,-195.5711968,0.0002298,2]
[330417691,1719361842622,-166.75,0.0002298,2]
[330417692,1719361842632,-166.75,0.0002298,2]
[330417693,1719361842641,-162.614421,0.00022981,7]
[330417694,1719361842651,-39743.9726388,0.00022983,2]
[330417695,1719361842661,-85948.5404502,0.00022983,2]
[330417696,1719361842670,-16120.3256465,0.00022983,2]
[330417697,1719361842679,-151.0,0.00022983,7]
[330417698,1719361842689,-151.0,0.00022983,7]
[330417699,1719361842698,-151.0,0.00022983,7]
[330417700,1719361842711,-6582.9511477,0.00022983,2]
[330417701,1719361842721,-568.384982,0.00022983,7]
[330417702,1719361842731,-180.27962173,0.00022983,2]
[330417703,1719361842740,-479.145162,0.00022983,7]
[330417704,1719361842750,-479.145162,0.00022983,7]
[330417705,1719361842759,-21642.9646505,0.00022983,2]
[330417706,1719361842769,-2140.2743504,0.00022983,2]
[330417707,1719361842778,-151.0,0.00022983,7]
[330417708,1719361842788,-151.0,0.00022983,7]
[330417709,1719361842797,-151.0,0.00022983,7]
[330417710,1719361842807,-151.0,0.00022983,7]
[330417711,1719361842816,-299.012664,0.00022983,7]
[330417712,1719361842826,-1268.720953,0.00022983,7]
[330417713,1719361842836,-1268.720953,0.00022983,7]
[330417714,1719361842845,-151.0,0.00022983,7]
[330417715,1719361842855,-151.0,0.00022984,7]
[330417716,1719361842866,-188.17654603,0.00022984,2]
[330417717,1719361842875,-800.0,0.00022986,2]
[330417718,1719361842888,-1000.0,0.00022989,2]
[330417719,1719361842897,-150.01,0.00022989,2]
[330417720,1719361842907,-250.0,0.00022989,2]
[330417721,1719361842918,-500.0,0.00022989,2]
[330417722,1719361842928,-750.0,0.00022989,2]
[330417723,1719361842937,-1000.0,0.00022989,2]
[330417724,1719361842947,-1250.0,0.00022989,2]
[330417725,1719361842956,-1500.0,0.00022989,2]
[330417726,1719361842965,-1840.21447382,0.00022989,2]
[330417727,1719361842974,-272302.50180289,0.0002299,7]
[330417728,1719361842988,-2056.1555444,0.0002299,7]
[330417729,1719361842999,-573.37954002,0.0002299,7]
[330417730,1719361843012,-525.78909216,0.0002299,7]
[330417731,1719361843048,-57218.12276951,0.0002299,7]
[330417732,1719361843064,-2811.46750405,0.0002299,7]
[330417733,1719361844215,-163.65389911,0.00022862,2]
[330417734,1719361844226,-235.27505482,0.00022965,2]
[330417735,1719361844236,-155.0,0.00022966,2]
[330417736,1719361844245,-158.01933423,0.00022967,2]
[330417737,1719361844273,-368.39452852,0.00022967,2]
[330417738,1719361844283,-503.90689126,0.0002299,7]
[330417739,1719361844410,-895.82827265,0.0002299,7]
[330417740,1719361844421,-6319.58947999,0.0002299,7]
[330417757,1719361845889,-209.74,0.0002287,3]
[330417758,1719361845900,-155.0,0.00022967,2]
[330417759,1719361845910,-150.01,0.00022989,2]
[330417760,1719361845920,-1323.72452143,0.0002299,7]
[330417761,1719361845932,-565.134902,0.0002299,7]
[330417762,1719361845944,-633.18,0.0002299,7]
[330417763,1719361845956,-423.84484654,0.0002299,7]
[330417764,1719361846053,-574.62857966,0.0002299,7]
[330417765,1719361846066,-1265.25,0.0002299,7]
[330417766,1719361846207,-5695.86143608,0.0002299,7]
[330417767,1719361860417,249.62568508,5e-05,2]
[330417768,1719361959110,2198.08329841,6.061e-05,2]
[330417769,1719361989549,202.49463357,6.061e-05,2]
[330417770,1719362001384,264.43360224,6.061e-05,2]
[330417771,1719362011312,232.9988994,6.061e-05,2]
[330417772,1719362018552,382.21003398,6.061e-05,2]
[330417773,1719362022590,1285.50884715,6.061e-05,2]
[330417774,1719362025076,70343.39069303,0.00014,2]
[330417775,1719362025104,192000.0,0.00014,2]
[330417776,1719362025135,18875.19584894,0.00014,2]
[330417777,1719362025161,5000.0,0.00014,2]
[330417778,1719362026562,202.34408286,7.347e-05,2]
[330417779,1719362036141,166.71667111,7.347e-05,2]
[330417780,1719362036164,77.42760323,7.347e-05,2]
[330417781,1719362088574,164.00395695,8.905e-05,2]
[330417782,1719362088595,80.14031739,8.905e-05,2]
[330417783,1719362128552,161.29124279,8.905e-05,2]
[330417784,1719362128574,82.85303155,8.905e-05,2]
[330417785,1719362154368,438.1115069,0.00010794,2]
[330417786,1719362178556,158.57852863,0.00010794,2]
[330417787,1719362178577,85.56574571,0.00010794,2]
[330417789,1719362402453,150.0,0.00010794,2]
[330417790,1719362402661,150.0,0.00010794,2]
[330417791,1719362402876,150.0,0.00010794,2]
[330417792,1719362403059,150.0,0.00010794,2]
[330417793,1719362403303,150.0,0.00010794,2]
[330417794,1719362403500,259.6289157,0.00010794,2]
[330417797,1719362700956,155.86581447,0.00011,2]
[330417798,1719362700977,155.86581447,0.00011,2]
[330417799,1719362700999,125.93777828,0.00011,2]
[330417809,1719363026487,151.00282106,0.00011,2]
[330417810,1719363026508,151.00282106,0.00011,2]
[330417811,1719363026529,98.93943388,0.00011,2]
[330417812,1719363028275,-189.23515969,0.00011199,2]
[330417840,1719363031898,-120.76484031,0.00011199,2]
[330417841,1719363031908,-159.85756079,0.00011572,2]
[330417842,1719363031917,-178.4933045,0.00011675,2]
[330417843,1719363031927,-378.778018,0.00012437,2]
[330417844,1719363031936,-1295.81543508,0.0001251,2]
[330417845,1719363031945,-660.4164294,0.00012986,2]
[330417846,1719363031955,-300.0,0.00012999,2]
[330417847,1719363031967,-300.0,0.00012999,2]
[330417848,1719363031977,-2973.80323193,0.00013,2]
[330417849,1719363032005,-1524.10623217,0.00013,2]
[330417854,1719363037843,-1603.77339555,0.00013,2]
[330417855,1719363038023,-316.14,0.00013,2]
[330418018,1719363039904,-150.0,0.00013,2]
[330418030,1719363040011,-594.91495782,0.00013,2]
[330418032,1719363040021,-15938.3778206,0.00013333,2]
[330418034,1719363040033,-841.24286317,0.00013333,2]
[330418047,1719363040161,-513.48021401,0.00013333,2]
[330418049,1719363040174,-1333.99259996,0.00013333,2]
[330418051,1719363040186,-3423.68358874,0.00013333,2]
[330418055,1719363040211,-3201.70173097,0.00013333,2]
[330418057,1719363040220,-2037.17,0.00013836,2]
[330418058,1719363040230,-150.0,0.00013836,2]
[330418059,1719363040239,-14663.08122428,0.0001387,2]
[330418060,1719363040249,-178.4933045,0.00013889,2]
[330418061,1719363040259,-1000.0,0.00013989,2]
[330418062,1719363040269,-35651.34853887,0.0001399,2]
[330418063,1719363040279,-64443.66023577,0.00014,2]
[330418064,1719363040288,-420.0,0.00014256,2]
[330418065,1719363040299,-587.0,0.00015634,2]
[330418066,1719363040308,-420.0,0.00017145,2]
[330418067,1719363040319,-698.23,0.00017147,2]
[330418068,1719363040329,-1648.9704979,0.0001726,2]
[330418069,1719363040338,-1514.44274815,0.0001726,2]
[330418070,1719363040348,-175.17,0.00018052,2]
[330418071,1719363040358,-150.0,0.00018125,2]
[330418072,1719363040368,-1000.0,0.00018482,2]
[330418073,1719363040378,-200.0,0.00018488,2]
[330418074,1719363040387,-3137.03,0.00018488,2]
[330418075,1719363040397,-250.0,0.00018673,2]
[330418076,1719363040407,-314.37,0.00018758,2]
[330418077,1719363040417,-174.78,0.00019009,3]
[330418078,1719363040426,-524.37,0.00019009,3]
[330418079,1719363040436,-2751.0,0.00019019,2]
[330418080,1719363040445,-3061.18,0.00019019,2]
[330418081,1719363040455,-250.0,0.00019178,2]
[330418082,1719363040464,-350.0,0.00019221,2]
[330418083,1719363040475,-698.23,0.00019411,2]
[330418085,1719363040485,-10000.0,0.00019528,2]
[330418087,1719363040495,-250.0,0.00019615,2]
[330418089,1719363040504,-314.37,0.00019696,2]
[330418090,1719363040514,-172.93,0.00019763,2]
[330418091,1719363040524,-450.0,0.00019769,2]
[330418092,1719363040534,-172.93,0.00019817,2]
[330418093,1719363040544,-172.93,0.00019872,2]
[330418094,1719363040555,-172.93,0.00019926,2]
[330418095,1719363040564,-172.93,0.0001998,2]
[330418096,1719363040575,-172.93,0.00020034,2]
[330418097,1719363040584,-172.93,0.00020088,2]
[330418098,1719363040593,-165.26,0.00020133,2]
[330418099,1719363040602,-200.0,0.00020133,2]
[330418100,1719363040615,-250.0,0.00020133,2]
[330418101,1719363040624,-200.0,0.00020134,2]
[330418102,1719363040634,-172.93,0.00020142,2]
[330418103,1719363040643,-172.93,0.00020197,2]
[330418104,1719363040653,-172.93,0.00020251,2]
[330418105,1719363040662,-172.93,0.00020305,2]
[330418106,1719363040671,-632.62156487,0.00020317,2]
[330418107,1719363040680,-172.93,0.00020359,2]
[330418108,1719363040689,-349.56,0.00020379,3]
[330418109,1719363040698,-172.93,0.00020413,2]
[330418110,1719363040706,-172.93,0.00020468,2]
[330418111,1719363040716,-172.93,0.00020522,2]
[330418112,1719363040725,-172.93,0.00020576,2]
[330418113,1719363040734,-172.93,0.0002063,2]
[330418114,1719363040743,-314.37,0.00020634,2]
[330418115,1719363040753,-172.93,0.00020684,2]
[330418116,1719363040762,-172.93,0.00020739,2]
[330418117,1719363040771,-1000.0,0.00020793,2]
[330418118,1719363040781,-172.93,0.00020793,2]
[330418119,1719363040791,-153.19,0.00020835,2]
[330418120,1719363040800,-500.0,0.00021,5]
[330418121,1719363040810,-2934.42258178,0.00021,2]
[330418122,1719363040823,-1250.0,0.00021,2]
[330418123,1719363040833,-166.0,0.00021031,2]
[330418124,1719363040846,-2411.0,0.00021031,2]
[330418125,1719363040856,-2816.917,0.00021031,2]
[330418126,1719363040867,-547.0,0.00021031,2]
[330418127,1719363040877,-290.0,0.00021031,2]
[330418128,1719363040886,-151.0,0.00021031,2]
[330418129,1719363040896,-10406.009,0.00021031,2]
[330418130,1719363040905,-150.245,0.00021031,2]
[330418131,1719363040915,-1660.0,0.00021031,2]
[330418132,1719363040924,-5797.0,0.00021031,2]
[330418133,1719363040933,-2219.673,0.00021031,2]
[330418134,1719363040943,-150.0,0.00021031,2]
[330418135,1719363040952,-1068.0,0.00021031,2]
[330418136,1719363040964,-561.0,0.000211,3]
[330418137,1719363040973,-1734.0,0.000212,3]
[330418138,1719363040982,-172.5,0.00021342,2]
[330418139,1719363040992,-314.37,0.00021572,2]
[330418140,1719363041002,-698.23,0.00021675,2]
[330418141,1719363041012,-11749.0,0.000218,5]
[330418142,1719363041021,-7073.47300775,0.00021917,2]
[330418143,1719363041030,-634.95,0.00021918,2]
[330418144,1719363041041,-7073.47300775,0.00022099,2]
[330418145,1719363041050,-2100.0,0.00022133,2]
[330418146,1719363041060,-152.0,0.00022393,3]
[330418147,1719363041071,-156.13731252,0.00022396,2]
[330418148,1719363041081,-549.457,0.000224,2]
[330418149,1719363041090,-333.66870551,0.00022406,2]
[330418150,1719363041099,-951.4631,0.00022406,2]
[330418151,1719363041109,-172.5,0.00022474,2]
[330418152,1719363041118,-55646.5073869,0.0002249,3]
[330418153,1719363041127,-720.52768086,0.00022495,2]
[330418154,1719363041137,-5707.17784171,0.00022496,3]
[330418155,1719363041152,-12841.65795389,0.00022496,3]
[330418156,1719363041161,-28977.9366,0.000225,2]
[330418157,1719363041171,-9889.50473924,0.000225,2]
[330418158,1719363041194,-1833.85919882,0.000225,2]
[330418159,1719363041205,-1539.43735402,0.000225,2]
[330418160,1719363041216,-411.41160012,0.000225,2]
[330418161,1719363041227,-342.61590109,0.000225,2]
[330418191,1719363042852,-775.84538643,0.000225,2]
[330418192,1719363042988,-8106.07402479,0.000225,2]
[330418193,1719363043038,-3678.09456,0.000225,2]
[330418194,1719363043083,-271.85267956,0.000225,2]
[330418195,1719363043266,-606.85991606,0.000225,2]
[330418196,1719363043277,-36474.27388118,0.000225,2]
[330418197,1719363043288,-2843.40769812,0.000225,2]
[330418200,1719363045149,-150.0,0.00013333,2]
[330418201,1719363046089,-116.06557749,0.00013333,2]
[330418202,1719363046098,-597.03072331,0.000225,2]
[330418203,1719363046110,-3325.10038391,0.000225,2]
[330418204,1719363046121,-500.0,0.000225,2]
[330418205,1719363046132,-3931.63203476,0.000225,2]
[330418206,1719363046606,-1750.0,0.000225,2]
[330418207,1719363046617,-21749.9999,0.000225,2]
[330418208,1719363046629,-1373.00001859,0.000225,2]
[330418209,1719363046638,-7026.99998141,0.00022506,2]
[330418211,1719363046653,-10529.92989144,0.00022506,2]
[330418213,1719363058141,-150.0,0.00013333,2]
[330418214,1719363404922,438.00098198,0.00011199,2]
[330418215,1719363439885,150.0,0.00011775,2]
[330418216,1719363439907,52.49463357,0.00011775,2]
[330418217,1719363440392,-180.29496709,0.00013333,2]
[330418218,1719363527885,1106.87834319,0.00030934,120]
[330418219,1719363533906,-150.0,0.00013332,2]
[330418220,1719363534594,-5.0,0.00013332,2]
[330418221,1719363534624,-80.81463357,0.00013333,2]
[330418222,1719363534655,-64.18536643,0.00013333,2]
[330418223,1719363535299,-150.0,0.00013332,2]
[330418224,1719363536734,-150.0,0.00013332,2]
[330418225,1719363537641,-49.76473211,0.00013332,2]
[330418226,1719363537669,-100.23526789,0.00013333,2]
[330418227,1719363569174,-135.57936568,0.00013333,2]
[330418228,1719363569198,-14.42063432,0.00013333,2]
[330418229,1719363569888,-150.0,0.00013333,2]
[330418230,1719363669327,150.0,0.00030934,30]
[330418232,1719363934205,-4653.32128228,0.00014847,2]
[330418233,1719364052908,150.0,0.00010949,2]
[330418234,1719364052930,50.36077415,0.00010949,2]
[330418235,1719364117558,1035.57936568,0.00010949,2]
[330418257,1719364232171,-2373.1700286,0.00012999,2]
[330418258,1719364232180,-167.42374753,0.00013271,2]
[330418259,1719364232189,-854.79972387,0.00014695,2]
[330418260,1719364232201,-318.18621713,0.00014695,2]
[330418261,1719364232210,-378.6472136,0.00014767,2]
[330418262,1719364232219,-644.92768887,0.00014768,2]
[330418263,1719364232231,-299.32325059,0.00014768,2]
[330418264,1719364232241,-300.67674941,0.00014769,2]
[330418265,1719364232271,-281.19172138,0.00014769,2]
[330418266,1719364232288,-6855.25523173,0.00014769,2]
[330418267,1719364232298,-3964.09852975,0.00015,2]
[330418268,1719364232307,-622.28574283,0.00015,2]
[330418269,1719364232317,-715.63640315,0.00015051,2]
[330418270,1719364232329,-168.44,0.00016445,2]
[330418271,1719364232338,-1757.65833399,0.000165,2]
[330418272,1719364232348,-499.99,0.0001726,2]
[330418273,1719364232357,-155.0,0.000177,2]
[330418274,1719364232367,-720.57,0.00018434,2]
[330418275,1719364232377,-12747.94565031,0.000185,2]
[330418276,1719364232386,-285.3,0.00020293,2]
[330418277,1719364232396,-153.19,0.00020297,2]
[330418278,1719364232407,-250.0,0.00020405,2]
[330418279,1719364232417,-2748.2,0.00020435,2]
[330418280,1719364232426,-20106.04,0.00020438,2]
[330418281,1719364232436,-415.7,0.00020458,2]
[330418282,1719364232445,-250.0,0.00020541,2]
[330418283,1719364232454,-200.0,0.00020575,2]
[330418284,1719364232464,-1000.0,0.00020593,2]
[330418285,1719364232473,-10000.0,0.00020609,2]
[330418286,1719364232483,-163.49,0.00020613,2]
[330418287,1719364232492,-716.74,0.00020617,2]
[330418288,1719364232501,-720.57,0.00020698,2]
[330418290,1719364232511,-12039.63530242,0.00020788,2]
[330418292,1719364232520,-373.35,0.00020802,2]
[330418294,1719364232533,-2490.45272928,0.00020814,2]
[330418296,1719364232542,-151.0,0.00020963,2]
[330418298,1719364232551,-1250.0,0.00021,2]
[330418300,1719364232560,-1304.0,0.00021031,2]
[330418302,1719364232569,-2201.0,0.000211,3]
[330418304,1719364232579,-151.0,0.00021252,2]
[330418305,1719364232587,-167.29,0.000213,2]
[330418306,1719364232597,-167.32,0.00021362,2]
[330418308,1719364232607,-155.0,0.00021541,2]
[330418309,1719364232616,-151.0,0.00021542,2]
[330418310,1719364232626,-242.06,0.00021592,2]
[330418311,1719364232635,-258.4992,0.00021638,2]
[330418312,1719364232645,-668.44,0.00021644,2]
[330418313,1719364232655,-716.74,0.00021648,2]
[330418314,1719364232664,-300.0,0.00021817,2]
[330418315,1719364232673,-151.0,0.00021831,2]
[330418316,1719364232683,-529.12,0.00021918,2]
[330418317,1719364232692,-151.0,0.00022121,2]
[330418318,1719364232702,-366.20311967,0.00022292,2]
[330418319,1719364232711,-156.6543,0.00022293,2]
[330418320,1719364232720,-151.0,0.00022411,2]
[330418321,1719364232730,-167.29,0.00022472,2]
[330418322,1719364232739,-3000.0,0.00022506,2]
[330418323,1719364232748,-4653.32127579,0.0002253,2]
[330418324,1719364232767,-242.06,0.00022672,2]
[330418325,1719364232782,-716.74,0.00022679,2]
[330418326,1719364232792,-5416.12118763,0.00022679,2]
[330418327,1719364232802,-9819.74986858,0.00022682,2]
[330418328,1719364232811,-1000.0,0.00022682,2]
[330418329,1719364232821,-1567.6488,0.00022682,2]
[330418330,1719364232831,-151.0,0.000227,2]
[330418331,1719364232840,-5416.12118763,0.00022702,2]
[330418332,1719364232850,-155.0,0.00022704,2]
[330418333,1719364232859,-1262.7490334,0.00022704,2]
[330418334,1719364232869,-9819.74986856,0.00022705,2]
[330418335,1719364232878,-5416.12118763,0.00022726,2]
[330418336,1719364232888,-9819.74986856,0.00022728,2]
[330418337,1719364232899,-5416.12118763,0.00022749,2]
[330418338,1719364232908,-266.78245834,0.0002275,2]
[330418339,1719364232917,-9819.74986856,0.00022751,2]
[330418340,1719364232927,-5416.12118763,0.00022773,2]
[330418341,1719364232936,-2877.04119189,0.00022774,2]
[330418342,1719364232946,-9819.74986856,0.00022774,2]
[330418343,1719364232955,-570.72379168,0.00022776,2]
[330418344,1719364232965,-79410.0934,0.00022782,2]
[330418345,1719364232974,-561.6533,0.00022782,2]
[330418346,1719364232984,-1565.74596654,0.0002279,2]
[330418347,1719364232993,-7500.0,0.0002279,2]
[330418348,1719364233003,-2877.04119183,0.00022791,2]
[330418349,1719364233013,-5416.12118763,0.00022796,2]
[330418350,1719364233023,-9819.74986856,0.00022798,2]
[330418351,1719364233036,-570.72379164,0.00022805,2]
[330418352,1719364233046,-500.0,0.00022805,2]
[330418353,1719364233055,-500.0,0.00022805,2]
[330418354,1719364233063,-500.0,0.00022806,2]
[330418355,1719364233072,-200.0,0.00022806,2]
[330418356,1719364233082,-2877.04119183,0.00022807,2]
[330418357,1719364233091,-5416.12118763,0.0002282,2]
[330418358,1719364233101,-9819.74986856,0.00022821,2]
[330418359,1719364233111,-1069.67493178,0.00022823,2]
[330418360,1719364233120,-2877.04119183,0.00022824,2]
[330418361,1719364233129,-242.0302607,0.00022831,2]
[330418362,1719364233139,-158.20924172,0.00022832,2]
[330418363,1719364233148,-1133.45256756,0.00022832,2]
[330418364,1719364233158,-570.72379164,0.00022833,2]
[330418365,1719364233168,-3105.72543091,0.00022839,2]
[330418366,1719364233178,-2877.04119183,0.0002284,2]
[330418367,1719364233187,-5416.12118763,0.00022843,2]
[330418368,1719364233197,-9819.74986856,0.00022844,2]
[330418369,1719364233207,-2877.04119183,0.00022857,2]
[330418370,1719364233216,-570.72379164,0.00022862,2]
[330418371,1719364233226,-269.34473484,0.00022863,2]
[330418372,1719364233236,-7603.8705747,0.00022864,3]
[330418373,1719364233246,-6336.55881225,0.00022864,3]
[330418374,1719364233257,-166.75,0.00022864,2]
[330418375,1719364233267,-1267.31176245,0.00022866,3]
[330418376,1719364233280,-5416.12118763,0.00022867,2]
[330418377,1719364233290,-9819.74986856,0.00022867,2]
[330418378,1719364233300,-731.0385254,0.00022869,5]
[330418379,1719364233310,-163.65389911,0.00022869,2]
[330418380,1719364233320,-2534.6235249,0.0002287,3]
[330418381,1719364233334,-720.52768086,0.0002287,2]
[330418382,1719364233344,-1000.0,0.00022873,2]
[330418383,1719364233353,-482.75596204,0.00022873,2]
[330418384,1719364233363,-1277.92942099,0.00022873,2]
[330418385,1719364233374,-2877.04119183,0.00022873,2]
[330418386,1719364233384,-2444.2404,0.00022874,2]
[330418387,1719364233394,-100000.0,0.00022874,2]
[330418388,1719364233404,-155.5699,0.00022874,2]
[330418389,1719364233415,-42560.2149,0.00022874,2]
[330418390,1719364233425,-155.0,0.00022875,2]
[330418391,1719364233435,-6336.55881225,0.00022878,3]
[330418392,1719364233444,-1000.0,0.0002288,2]
[330418393,1719364233454,-12423.453,0.0002288,2]
[330418394,1719364233464,-876.47816778,0.0002288,2]
[330418395,1719364233473,-5069.2470498,0.0002288,3]
[330418396,1719364233483,-172.5,0.00022883,2]
[330418397,1719364233492,-211.43806313,0.00022884,2]
[330418398,1719364233502,-876.47816778,0.00022885,2]
[330418399,1719364233512,-39766.92021355,0.00022888,4]
[330418400,1719364233522,-163.64202156,0.00022888,2]
[330418401,1719364233533,-955.4886757,0.00022889,2]
[330418402,1719364233543,-178.78024251,0.0002289,2]
[330418403,1719364233552,-19849.49539642,0.0002289,2]
[330418404,1719364233562,-211.43806312,0.0002289,2]
[330418405,1719364233572,-151.0,0.0002289,7]
[330418406,1719364233581,-151.0,0.0002289,7]
[330418407,1719364233591,-151.0,0.0002289,7]
[330418408,1719364233601,-151.0,0.0002289,7]
[330418409,1719364233611,-793.563802,0.0002289,7]
[330418410,1719364233620,-245.864444,0.0002289,7]
[330418411,1719364233630,-151.0,0.0002289,7]
[330418412,1719364233639,-151.0,0.0002289,7]
[330418413,1719364233649,-793.563802,0.0002289,7]
[330418414,1719364233658,-245.864444,0.0002289,7]
[330418415,1719364233668,-158.62138,0.0002289,7]
[330418416,1719364233678,-317.428721,0.0002289,7]
[330418417,1719364233687,-317.428721,0.0002289,7]
[330418418,1719364233697,-338.405699,0.0002289,7]
[330418419,1719364233706,-338.405699,0.0002289,7]
[330418420,1719364233715,-296.793227,0.0002289,7]
[330418421,1719364233724,-152.117226,0.0002289,7]
[330418422,1719364233756,-151.0,0.0002289,7]
[330418423,1719364233776,-228.100728,0.0002289,7]
[330418424,1719364233796,-296.793227,0.0002289,7]
[330418425,1719364233814,-228.100728,0.0002289,7]
[330418426,1719364233831,-474.212653,0.0002289,7]
[330418427,1719364233850,-3291.74947041,0.0002289,2]
[330418428,1719364235320,-2124.37171722,0.0002289,2]
[330418429,1719364235336,-474.212653,0.0002289,7]
[330418430,1719364235346,-151.0,0.0002289,7]
[330418431,1719364235355,-151.0,0.0002289,7]
[330418432,1719364235365,-172.962714,0.0002289,7]
[330418433,1719364235376,-151.0,0.0002289,7]
[330418434,1719364235385,-151.0,0.0002289,7]
[330418435,1719364235394,-86.96196578,0.0002289,7]
[330418436,1719364235407,-86.00074822,0.0002289,7]
[330418437,1719364235420,-151.0,0.0002289,7]
[330418438,1719364235429,-151.0,0.0002289,7]
[330418439,1719364235439,-1892.13227448,0.0002289,2]
[330418440,1719364235448,-184.178628,0.0002289,7]
[330418441,1719364235457,-151.0,0.0002289,7]
[330418442,1719364235466,-151.0,0.0002289,7]
[330418443,1719364235978,-1510.76861232,0.0002289,2]
[330418444,1719364236012,-375.59313301,0.0002289,2]
[330418445,1719364236047,-2999.671953,0.0002289,7]
[330418446,1719364236063,-415.14886986,0.0002289,7]
[330418447,1719364236108,-200.0,0.00022888,4]
[330418448,1719364236117,-513.45,0.0002289,7]
[330418449,1719364236129,-2071.07308314,0.0002289,7]
[330418450,1719364236138,-572.88577079,0.0002289,2]
[330418451,1719364236149,-303.59239699,0.0002289,2]
[330418452,1719364236159,-570.72379164,0.0002289,2]
[330418453,1719364236168,-2877.04119183,0.0002289,2]
[330418454,1719364236177,-1000.0,0.0002289,2]
[330418455,1719364236186,-4559.54160223,0.0002289,2]
[330418456,1719364236310,-250.0,0.00020383,2]
[330418457,1719364236320,-364.844001,0.00021299,2]
[330418458,1719364236334,-5440.45839777,0.0002289,2]
[330418459,1719364236344,-934.0,0.000229,2]
[330418460,1719364236354,-2245.04937216,0.000229,2]
[330418461,1719364236364,-294.93226454,0.000229,2]
[330418462,1719364236374,-490.0,0.000229,5]
[330418463,1719364236383,-155.0,0.00022943,2]
[330418464,1719364236394,-753.80816416,0.00022943,2]
[330418465,1719364236403,-155.0,0.00022944,2]
[330418466,1719364236415,-155.0,0.00022944,2]
[330418467,1719364236425,-155.0,0.00022944,3]
[330418468,1719364236435,-158.87877684,0.00022946,2]
[330418469,1719364236444,-217.78950584,0.00022947,2]
[330418470,1719364236453,-155.0,0.00022947,2]
[330418471,1719364236463,-659.93144109,0.00022947,2]
[330418472,1719364236472,-158.87877684,0.00022948,2]
[330418473,1719364236482,-235.27505482,0.00022948,2]
[330418474,1719364236491,-155.0,0.00022948,2]
[330418475,1719364236501,-254.45717407,0.00022948,2]
[330418476,1719364236511,-4747.52108255,0.00022948,2]
[330418477,1719364236521,-165.354322,0.00022948,2]
[330418478,1719364236531,-155.0,0.00022948,2]
[330418479,1719364236541,-520.06850352,0.00022949,2]
[330418480,1719364236551,-589.65406953,0.00022949,2]
[330418481,1719364236562,-155.0,0.00022949,2]
[330418482,1719364236571,-310.0,0.0002295,2]
[330418483,1719364236580,-202.39426643,0.00022958,2]
[330418484,1719364236590,-151.0,0.0002296,7]
[330418485,1719364236599,-151.0,0.0002296,7]
[330418486,1719364236608,-151.0,0.0002296,7]
[330418487,1719364236618,-151.0,0.0002296,7]
[330418488,1719364236627,-201.229792,0.0002296,7]
[330418489,1719364236637,-164.326423,0.0002296,7]
[330418490,1719364236646,-201.229792,0.0002296,7]
[330418491,1719364236655,-164.326423,0.0002296,7]
[330418492,1719364236664,-151.0,0.0002296,7]
[330418493,1719364236674,-151.0,0.0002296,7]
[330418494,1719364236683,-151.0,0.0002296,7]
[330418495,1719364236692,-151.0,0.0002296,7]
[330418496,1719364236702,-151.0,0.0002296,7]
[330418497,1719364236712,-151.0,0.0002296,7]
[330418498,1719364236722,-151.0,0.0002296,7]
[330418499,1719364236731,-151.0,0.0002296,7]
[330418500,1719364236741,-545.000507,0.0002296,7]
[330418501,1719364236750,-545.000507,0.0002296,7]
[330418502,1719364236759,-151.0,0.0002296,7]